Workbook

Sheet Collateral Tables
B1: CNH CAPITAL AUSTRALIA RECEIVABLES TRUST SERIES 2016-1 (TERM DEAL)
B2: COLLATERAL DATA TABLES
B4: OUTSTANDING RECEIVABLES | E4: 2016-10-31 | I4: 2016-07-31 | M4: 2016-04-30
B6: Opening Balance | E6: =I13 -> 253371003.9 | I6: 275076134.5 | M6: 349999833.4
B7: Principal Repayments - Scheduled | E7: =MIN('[1]16 Nov 16'!$H23,SUM([2]Sheet1!$B$3,[3]Sheet1!$B$3,[4]Sheet1!$B$3)) -> 13038858.94 | I7: 18368178.68 | M7: 70539694.68
B8: Principal Repayments - Unscheduled | E8: ='[1]16 Nov 16'!H23-'Collateral Tables'!E7 -> 7347080.2 | I8: 2981303.99 | M8: 4299938
A9: =SUM(I9:M9) -> 439714.14 | B9: Charge-Offs | E9: ='[1]16 Nov 16'!$H37 -> 0 | I9: 355647.93 | M9: 84066.21
B10: Reinstatements
B11: New Receivables Purchased
B12: Non Cash Change in Receivables
B13: Closing Balance | E13: =E6-E7-E8-E9+E10+E11-E12 -> 232985064.8 | I13: 253371003.9 | M13: 275076134.5
B15: PORTFOLIO STATISTICS
B17: Summary
B18: Number of contracts | E18: =[5]Summary!$B$4 -> 3133 | I18: 3263 | M18: 3422
B19: Average Dollar Value of Loans | E19: =[5]Summary!$B$6 -> 74364.84673 | I19: 77649.71006 | M19: 80384.60974
B20: Number of contracts closed during the Quarter | E20: =[5]Summary!$B$19 -> 130 | I20: 157 | M20: 216
B21: Dollar value of contracts closed during the Quarter | E21: =[5]Summary!$B$20 -> 8722235.73 | I21: 5997812.86 | M21: 10129289.88
A23: =SUM(M23) -> 0 | B23: Dollar Value of Recoveries from Collateral | E23: =[5]Summary!$C$16 -> 90664.72 | I23: -8677.59 | M23: 0
B24: Dollar Value of Recoveries from Other Sources | E24: 0 | I24: 0 | M24: 0
B26: Average Term of Contracts (Months) | E26: =[6]Sheet1!$W$3135 -> 51.22126898 | I26: 50.9050185 | M26: 50.60256169
B27: Average Term to Maturity (Months) | E27: =[6]Sheet1!$X$3135 -> 28.79606226 | I27: 31.26182456 | M27: 33.58014303
B28: Average Residual / Balloon Payment * | E28: =[6]Sheet1!$AI$3135 -> 0.01994771521 | I28: 0.02262999179 | M28: 0.02404080908
B29: Average Seasoning (Months) | E29: =E26-E27 -> 22.42520672 | I29: 19.64319394 | M29: 17.02241867
B30: Average Dollar Value of Individual Assets | E30: =E19/E18 -> 23.73598683 | I30: 23.79703036 | M30: 23.4905347
B31: Weighted Average Interest Rate | E31: =[6]Sheet1!$AA$3135/100 -> 0.0362440896 | I31: 0.03646223799 | M31: 0.03665547144
B33: Payment in Arrears
A34: 1. 0 - 30 Days | B34: 0 - 30 Days | E34: =IFERROR(VLOOKUP($A34,'[7]Arrears Reporting'!$A$1:$D$6,3,FALSE),0) -> 3124 | F34: =IFERROR(VLOOKUP($A34,'[7]Arrears Reporting'!$A$1:$D$5,2,FALSE),0) -> 20933.36 | G34: =F34/F$50 -> 8.984850604e-05 | I34: 3255 | J34: 120639.01 | K34: 0.0004761358172 | M34: 3409 | N34: 279917.05 | O34: 0.001017598457
A35: 2. 31 - 60 Days | B35: 31 - 60 Days | E35: =IFERROR(VLOOKUP($A35,'[7]Arrears Reporting'!$A$1:$D$6,3,FALSE),0) -> 6 | F35: =IFERROR(VLOOKUP($A35,'[7]Arrears Reporting'!$A$1:$D$5,2,FALSE),0) -> 106352.71 | G35: =F35/F$50 -> 0.0004564786592 | I35: 3 | J35: 46074.11 | K35: 0.0001818444466 | M35: 8 | N35: 230113.48 | O35: 0.0008365446911
A36: 3. 61 - 90 Days | B36: 61 - 90 Days | E36: =IFERROR(VLOOKUP($A36,'[7]Arrears Reporting'!$A$1:$D$6,3,FALSE),0) -> 0 | F36: =IFERROR(VLOOKUP($A36,'[7]Arrears Reporting'!$A$1:$D$5,2,FALSE),0) -> 0 | G36: 0 | I36: 4 | J36: 60200 | K36: 0.0002375962485 | M36: 3 | N36: 35237.55 | O36: 0.0001281010803
A37: 4. 91 - 120 Days | B37: 91 - 120 Days | E37: =IFERROR(VLOOKUP($A37,'[7]Arrears Reporting'!$A$1:$D$6,3,FALSE),0) -> 3 | F37: =IFERROR(VLOOKUP($A37,'[7]Arrears Reporting'!$A$1:$D$5,2,FALSE),0) -> 19683.8 | G37: 8.44852438e-05 | I37: 0 | J37: 0 | K37: 0 | M37: 1 | N37: 48099.14 | O37: 0.0001748575538
A38: 5. 121 - 150 Days | B38: 121 - 150 Days | E38: =IFERROR(VLOOKUP($A38,'[7]Arrears Reporting'!$A$1:$D$6,3,FALSE),0) -> 0 | F38: =IFERROR(VLOOKUP($A38,'[7]Arrears Reporting'!$A$1:$D$5,2,FALSE),0) -> 0 | G38: 0 | I38: 1 | J38: 5363.45 | K38: 2.116836543e-05 | M38: 1 | N38: 30045.72 | O38: 0.0001092269239
A39: 6. 151 - 180 Days | B39: 151 - 180 Days | E39: =IFERROR(VLOOKUP($A39,'[7]Arrears Reporting'!$A$1:$D$6,3,FALSE),0) -> 0 | F39: =IFERROR(VLOOKUP($A39,'[7]Arrears Reporting'!$A$1:$D$5,2,FALSE),0) -> 0 | G39: 0 | I39: 0 | J39: 0 | K39: 0 | M39: 0 | N39: 0 | O39: 0
B40: Total | E40: =SUM(E34:E39) -> 3133 | F40: =SUM(F34:F39) -> 146969.87 | G40: =SUM(G34:G39) -> 0.0006308124091 | I40: 3263 | J40: 232276.57 | K40: 0.0009167448777 | M40: 3422 | N40: 623412.94 | O40: 0.002266328706
B41: * Expressed as a % of Aggreg. Rec. closing bal. | F41: > 30 days | G41: =SUM(G35:G39) -> 0.000540963903 | J41: > 30 days | K41: 0.0004406090605 | N41: > 30 days | O41: 0.001248730249
A43: 0 - 30 Days | B43: Account Balances in Arrears
A44: 1. 0 - 30 Days | B44: 0 - 30 Days | E44: =IFERROR(VLOOKUP($A44,'[7]Arrears Reporting'!$A$1:$D$6,3,FALSE),0) -> 3124 | F44: =IFERROR(VLOOKUP($A44,'[7]Arrears Reporting'!$A$1:$D$6,4,FALSE),0) -> 232540319.8 | G44: =F44/F$50 -> 0.9980911009 | I44: 3255 | J44: 252870428.1 | K44: 0.9980243366 | M44: 3409 | N44: 273901148.8 | O44: 0.9957285071
A45: 2. 31 - 60 Days | B45: 31 - 60 Days | E45: =IFERROR(VLOOKUP($A45,'[7]Arrears Reporting'!$A$1:$D$6,3,FALSE),0) -> 6 | F45: =IFERROR(VLOOKUP($A45,'[7]Arrears Reporting'!$A$1:$D$6,4,FALSE),0) -> 225774.02 | G45: =F45/F$50 -> 0.000969049326 | I45: 3 | J45: 122576.48 | K45: 0.000483782588 | M45: 8 | N45: 698753.64 | O45: 0.00254021906
A46: 3. 61 - 90 Days | B46: 61 - 90 Days | E46: =IFERROR(VLOOKUP($A46,'[7]Arrears Reporting'!$A$1:$D$6,3,FALSE),0) -> 0 | F46: =IFERROR(VLOOKUP($A46,'[7]Arrears Reporting'!$A$1:$D$6,4,FALSE),0) -> 0 | G46: 0 | I46: 4 | J46: 366338.58 | K46: 0.001445858343 | M46: 3 | N46: 107754.56 | O46: 0.0003917263131
A47: 4. 91 - 120 Days | B47: 91 - 120 Days | E47: =IFERROR(VLOOKUP($A47,'[7]Arrears Reporting'!$A$1:$D$6,3,FALSE),0) -> 3 | F47: =IFERROR(VLOOKUP($A47,'[7]Arrears Reporting'!$A$1:$D$6,4,FALSE),0) -> 218970.95 | G47: =F47/F$50 -> 0.000939849729 | I47: 0 | J47: 0 | K47: 0 | M47: 1 | N47: 84424.18 | O47: 0.0003069120487
A48: 5. 121 - 150 Days | B48: 121 - 150 Days | E48: =IFERROR(VLOOKUP($A48,'[7]Arrears Reporting'!$A$1:$D$6,3,FALSE),0) -> 0 | F48: =IFERROR(VLOOKUP($A48,'[7]Arrears Reporting'!$A$1:$D$6,4,FALSE),0) -> 0 | G48: =F48/F$50 -> 0 | I48: 1 | J48: 11660.76 | K48: 4.602247226e-05 | M48: 1 | N48: 284053.38 | O48: 0.001032635494
A49: 6. 151 - 180 Days | B49: 151 - 180 Days | E49: =IFERROR(VLOOKUP($A49,'[7]Arrears Reporting'!$A$1:$D$6,3,FALSE),0) -> 0 | F49: =IFERROR(VLOOKUP($A49,'[7]Arrears Reporting'!$A$1:$D$6,4,FALSE),0) -> 0 | G49: =F49/F$50 -> 0 | I49: 0 | J49: 0 | K49: 0 | M49: 0 | N49: 0 | O49: 0
B50: Total | E50: =SUM(E44:E49) -> 3133 | F50: =SUM(F44:F49) -> 232985064.8 | G50: =SUM(G44:G49) -> 1 | I50: 3263 | J50: 253371003.9 | K50: 1 | M50: 3422 | N50: 275076134.5 | O50: 1
A51: NSW | F51: > 30 days | G51: =SUM(G45:G49) -> 0.001908899055 | J51: > 30 days | K51: 0.001975663404 | N51: > 30 days | O51: 0.004271492916
F52: >90 days | G52: =SUM(G47:G49) -> 0.000939849729 | J52: >90 days | K52: 4.602247226e-05 | N52: >90 days | O52: 0.001339547542
A54: VIC | B54: Geographic Distribution
A55: NSW | B55: New South Wales | E55: =F55/F$63 -> 0.2847996319 | F55: =IFERROR(VLOOKUP($A$55,'[7]Geographic '!$A$1:$C$10,3,FALSE),0) -> 66354060.69 | I55: 0.2911050372 | J55: 73757575.52 | M55: 0.2970537644 | N55: 81712401.25
A56: VIC | B56: Victoria | E56: =F56/F$63 -> 0.1751804458 | F56: =IFERROR(VLOOKUP($A$56,'[7]Geographic '!$A$1:$C$10,3,FALSE),0) -> 40814427.52 | I56: 0.1752908631 | J56: 44413621.96 | M56: 0.1802248851 | N56: 49575564.73
A57: QLD | B57: Queensland | E57: 0.1043373745 | F57: =IFERROR(VLOOKUP($A$57,'[7]Geographic '!$A$1:$C$10,3,FALSE),0) -> 24309049.96 | I57: 0.1134562463 | J57: 28746523.03 | M57: 0.117573273 | N57: 32341601.47
A58: SA | B58: South Australia | E58: 0.1917387326 | F58: =IFERROR(VLOOKUP($A$58,'[7]Geographic '!$A$1:$C$10,3,FALSE),0) -> 44672261.03 | I58: 0.1845992436 | J58: 46772095.68 | M58: 0.1791939462 | N58: 49291978.05
A59: NT | B59: Northern Territory | E59: 0.0004543330711 | F59: =IFERROR(VLOOKUP($A$59,'[7]Geographic '!$A$1:$C$10,3,FALSE),0) -> 105852.82 | I59: 0.0004177779555 | J59: 105852.82 | M59: 0.0003848128089 | N59: 105852.82
A60: ACT | B60: Australian Capital Territory | E60: 0.0002162085799 | F60: =IFERROR(VLOOKUP($A$60,'[7]Geographic '!$A$1:$C$10,3,FALSE),0) -> 50373.37 | I60: 0.0002204757416 | J60: 55862.16 | M60: 0.0002227655994 | N60: 61277.5
A61: TAS | B61: Tasmania | E61: 0.008594931103 | F61: =IFERROR(VLOOKUP($A$61,'[7]Geographic '!$A$1:$C$10,3,FALSE),0) -> 2002490.58 | I61: 0.008849920019 | J61: 2242313.12 | M61: 0.009794302456 | N61: 2694178.86
A62: WA | B62: Western Australia | E62: 0.2346783424 | F62: =IFERROR(VLOOKUP($A$62,'[7]Geographic '!$A$1:$C$10,3,FALSE),0) -> 54676548.82 | I62: 0.2260604361 | J62: 57277159.64 | M62: 0.2155522505 | N62: 59293279.85
B63: Total | E63: =SUM(E55:E62) -> 1 | F63: =SUM(F55:F62) -> 232985064.8 | I63: 1 | J63: 253371003.9 | M63: 1 | N63: 275076134.5
A64: AG | G64: =E13-F63 -> 0 | K64: 0 | O64: 275076134.5
A65: CE | B65: Top Industry Distribution
A66: AGRICULTURAL MACHINERY | B66: Agricultural | E66: =F66/F$69 -> 0.987458344 | F66: =IFERROR(VLOOKUP(A66,'[7]Top Industry'!$A$1:$C$5,3,FALSE),) -> 230063046.2 | I66: 0.986693672 | J66: 249999566.2 | M66: 0.9852200433 | N66: 271010521.2
A67: CONSTRUCTION EQUIPMENT | B67: Construction | E67: =F67/F$69 -> 0.01254165602 | F67: =IFERROR(VLOOKUP($A$67,'[7]Top Industry'!$A$1:$C$5,3,FALSE),) -> 2922018.54 | I67: 0.01330632798 | J67: 3371437.68 | M67: 0.01477995671 | N67: 4065613.36
A68: MOTOR VEHICLE - AG | B68: Motor Vehicle AG | E68: =F68/F$69 -> 0 | F68: =IFERROR(VLOOKUP($A$68,'[7]Top Industry'!$A$1:$C$5,3,FALSE),) -> 0 | I68: 0 | J68: 0 | M68: 0 | N68: 0
B69: Total | E69: =SUM(E66:E68) -> 1 | F69: =SUM(F66:F68) -> 232985064.8 | G69: =F63-F69 -> 3.87430191e-07 | I69: 1 | J69: 253371003.9 | K69: 5.066394806e-07 | M69: 1 | N69: 275076134.5 | O69: -275076134.5
A70: COMBINE
A71: 40-100 HP TRACTOR | B71: Collateral Types
A72: 100<140 HP TRACTOR | B72: 100-140 HP TRACTOR | E72: =IFERROR(F72/F$107,0) -> 0.101170271 | F72: =IFERROR(VLOOKUP($A$72,[7]Collateral!$A$1:$C$30,3,FALSE),"") -> 23571162.15 | I72: 0.1031342089 | J72: 26131218.04 | M72: 0.1070289451 | N72: 29441108.51
A73: 4 EWD Tractors | B73: 4 EWD Tractors | E73: 0.1116703381 | F73: =IFERROR(VLOOKUP($A$73,[7]Collateral!$A$1:$C$30,3,FALSE),"") -> 26017520.95 | I73: 0.108167227 | J73: 27406438.9 | M73: 0.1081696967 | N73: 29754902.05
A74: 40<100 HP Tractor | B74: 40<100 HP Tractor | E74: =IFERROR(F74/F$107,0) -> 0 | F74: =IFERROR(VLOOKUP($A$74,[7]Collateral!$A$1:$C$30,3,FALSE),"") ->  | I74: 0 | M74: 0
A75: 40<60 HP TRACTOR | B75: 40-60 HP TRACTOR | E75: =IFERROR(F75/F$107,0) -> 0.006824115792 | F75: =IFERROR(VLOOKUP($A$75,[7]Collateral!$A$1:$C$30,3,FALSE),"") -> 1589917.06 | I75: 0.007503254715 | J75: 1901107.18 | M75: 0.008262193752 | N75: 2272732.32
A76: 4WD VEHICLE | B76: 4WD VEHICLE | E76: 6.119701283e-05 | F76: =IFERROR(VLOOKUP($A$76,[7]Collateral!$A$1:$C$30,3,FALSE),"") -> 14257.99 | I76: 7.22018294e-05 | J76: 18293.85 | M76: 8.109005908e-05 | N76: 22305.94
A77: 60<100 HP TRACTOR | B77: 60-100 HP TRACTOR | E77: 0.06023897778 | F77: =IFERROR(VLOOKUP($A$77,[7]Collateral!$A$1:$C$30,3,FALSE),"") -> 14034782.14 | I77: 0.06389721325 | J77: 16189701.07 | M77: 0.06736803628 | N77: 18531339.01
A78: Backhoes | B78: Backhoes | E78: 0.0005047755319 | F78: =IFERROR(VLOOKUP($A$78,[7]Collateral!$A$1:$C$30,3,FALSE),"") -> 117605.16 | I78: 0.0005335781045 | J78: 135193.22 | M78: 0.0005552519133 | N78: 152736.55
A79: BALERS, WINDROWERS, MOWERS, RAKES | B79: BALERS, WINDROWERS, MOWERS, RAKES | E79: 0.03683044004 | F79: =IFERROR(VLOOKUP($A$79,[7]Collateral!$A$1:$C$30,3,FALSE),"") -> 8580942.46 | I79: 0.03881171274 | J79: 9833762.62 | M79: 0.03855102529 | N79: 10604467.02
A80: QUAD BIKES | B80: QUAD BIKES | E80: 2.167267676e-05 | F80: =IFERROR(VLOOKUP($A$80,[7]Collateral!$A$1:$C$30,3,FALSE),"") -> 5049.41 | I80: 3.228048937e-05 | J80: 8178.94 | M80: 3.362654494e-05 | N80: 9249.86
A81: Combines | B81: Combines | E81: 0.354894876 | F81: =IFERROR(VLOOKUP($A$81,[7]Collateral!$A$1:$C$30,3,FALSE),"") -> 82685205.68 | I81: 0.3546253702 | J81: 89851786.07 | M81: 0.3471765873 | N81: 95499993.64
A82: TRUCK - on Farm | B82: TRUCK - on Farm | E82: 0 | F82: =IFERROR(VLOOKUP($A$82,[7]Collateral!$A$1:$C$30,3,FALSE),"") ->  | I82: 0 | M82: 7.090956848e-05 | N82: 19505.53
A83: Cotton Pickers | B83: Cotton Pickers | E83: 0.0002338882539 | F83: =IFERROR(VLOOKUP($A$83,[7]Collateral!$A$1:$C$30,3,FALSE),"") -> 54492.47 | I83: 0.0002150698744 | J83: 54492.47 | M83: 0.0001980995919 | N83: 54492.47
A84: CRAWLERS / DOZERS | B84: CRAWLERS / DOZERS | E84: 0 | F84: =IFERROR(VLOOKUP($A$84,[7]Collateral!$A$1:$C$30,3,FALSE),"") ->  | I84: 0 | M84: 0
A85: CULTIVATORS,SEEDERS, HARROWS | B85: CULTIVATORS,SEEDERS, HARROWS | E85: 0.01571876546 | F85: =IFERROR(VLOOKUP($A$85,[7]Collateral!$A$1:$C$30,3,FALSE),"") -> 3662237.59 | I85: 0.01487702847 | J85: 3769407.64 | M85: 0.01434327644 | N85: 3945493.04
A86: Drill | B86: Drill | E86: 0.0006080083722 | F86: =IFERROR(VLOOKUP($A$86,[7]Collateral!$A$1:$C$30,3,FALSE),"") -> 141656.87 | I86: 0.0005815119635 | J86: 147338.27 | M86: 0.0006334074757 | N86: 174235.28
A87: DUMP TRUCKS | B87: DUMP TRUCKS | E87: 0 | F87: =IFERROR(VLOOKUP($A$87,[7]Collateral!$A$1:$C$30,3,FALSE),"") ->  | I87: 0 | M87: 0
A88: EXCAVATORS / GRADERS | B88: EXCAVATORS / GRADERS | E88: 0.004300401877 | F88: =IFERROR(VLOOKUP($A$88,[7]Collateral!$A$1:$C$30,3,FALSE),"") -> 1001929.41 | I88: 0.004504911226 | J88: 1141413.88 | M88: 0.005080546673 | N88: 1397537.14
A89: FEEDERS, MIXERS, WAGONS, BINS, FEED STORAGE | B89: FEEDERS, MIXERS, WAGONS, BINS, FEED STORAGE | E89: 0.00300514104 | F89: =IFERROR(VLOOKUP($A$89,[7]Collateral!$A$1:$C$30,3,FALSE),"") -> 700152.98 | I89: 0.002812926495 | J89: 712714.01 | M89: 0.002727348126 | N89: 750228.38
A90: Front End Loader | B90: Front End Loader | E90: 0.0002578689327 | F90: =IFERROR(VLOOKUP($A$90,[7]Collateral!$A$1:$C$30,3,FALSE),"") -> 60079.61 | I90: 0.0004311603076 | J90: 109243.52 | M90: 0.0005463704449 | N90: 150293.47
A91: Fronts | B91: Fronts | E91: 0.004107447749 | F91: =IFERROR(VLOOKUP($A$91,[7]Collateral!$A$1:$C$30,3,FALSE),"") -> 956973.98 | I91: 0.003945555665 | J91: 999689.4 | M91: 0.00397434351 | N91: 1093247.05
A92: GUIDANCE SYSTEMS | B92: Guidance Systems | E92: 0 | F92: =IFERROR(VLOOKUP($A$92,[7]Collateral!$A$1:$C$30,3,FALSE),"") ->  | I92: 0 | M92: 0
A93: HARVESTERS - Other | B93: HARVESTERS - Other | E93: 0.003288929832 | F93: =IFERROR(VLOOKUP($A$93,[7]Collateral!$A$1:$C$30,3,FALSE),"") -> 766271.53 | I93: 0.003049856487 | J93: 772745.2 | M93: 0.00281193718 | N93: 773496.81
A94: Irrigation Equipment | B94: Irrigation Equipment | E94: 0.0009845726386 | F94: =IFERROR(VLOOKUP($A$94,[7]Collateral!$A$1:$C$30,3,FALSE),"") -> 229390.72 | I94: 0.0009053550582 | J94: 229390.72 | M94: 0.0008339172004 | N94: 229390.72
A95: Other AG | B95: Other AG | E95: 0.005671331298 | F95: =IFERROR(VLOOKUP($A$95,[7]Collateral!$A$1:$C$30,3,FALSE),"") -> 1321335.49 | I95: 0.005655253079 | J95: 1432877.15 | M95: 0.00568258018 | N95: 1563142.19
A96: MATERIALS HANDLING EQUIPMENT | B96: MATERIALS HANDLING EQUIPMENT | E96: 0.0002040917517 | F96: =IFERROR(VLOOKUP($A$96,[7]Collateral!$A$1:$C$30,3,FALSE),"") -> 47550.33 | I96: 0.0002301239254 | J96: 58306.73 | M96: 0.0002507783168 | N96: 68983.13
A97: Other CE | B97: Other CE | E97: 0.0006313779389 | F97: =IFERROR(VLOOKUP($A$97,[7]Collateral!$A$1:$C$30,3,FALSE),"") -> 147101.63 | I97: 0.0005805779972 | J97: 147101.63 | M97: 0.00097246597 | N97: 267502.18
A98: Over 100 HP Tractor | B98: Over 100 HP Tractor | E98: 0 | F98: =IFERROR(VLOOKUP($A$98,[7]Collateral!$A$1:$C$30,3,FALSE),"") ->  | I98: 0 | M98: 0
A99: OVER 140 HP TRACTOR | B99: OVER 140 HP TRACTOR | E99: 0.2119431364 | F99: =IFERROR(VLOOKUP($A$99,[7]Collateral!$A$1:$C$30,3,FALSE),"") -> 49379585.37 | I99: 0.2102992659 | J99: 53283736.12 | M99: 0.2113099802 | N99: 58126332.54
A100: Rollers | B100: Rollers | E100: 0 | F100: =IFERROR(VLOOKUP($A$100,[7]Collateral!$A$1:$C$30,3,FALSE),"") ->  | I100: 0 | M100: 0
A101: SCRAPERS | B101: SCRAPERS | E101: 0.0002650593936 | F101: =IFERROR(VLOOKUP($A$101,[7]Collateral!$A$1:$C$30,3,FALSE),"") -> 61754.88 | I101: 0.0002712557828 | J101: 68728.35 | M101: 0.0002746442549 | N101: 75548.08
A102: SKIDSTEER / UNILOADER | B102: SKIDSTEER / UNILOADER | E102: 0.006275620033 | F102: =IFERROR(VLOOKUP($A$102,[7]Collateral!$A$1:$C$30,3,FALSE),"") -> 1462125.74 | I102: 0.00682139003 | J102: 1728342.44 | M102: 0.007280191331 | N102: 2002606.89
A103: SPRAYING EQUIPMENT | B103: SPRAYING EQUIPMENT | E103: 0.06740339714 | F103: =IFERROR(VLOOKUP($A$103,[7]Collateral!$A$1:$C$30,3,FALSE),"") -> 15703984.85 | I103: 0.06500931091 | J103: 16471474.37 | M103: 0.06254556412 | N103: 17204792.01
A104: Trenchers | B104: Trenchers | E104: 0 | F104: =IFERROR(VLOOKUP($A$104,[7]Collateral!$A$1:$C$30,3,FALSE),"") ->  | I104: 0 | M104: 0
A105: Under 40 HP Tractors | B105: Under 40 HP Tractors | E105: 0.002523968438 | F105: =IFERROR(VLOOKUP($A$105,[7]Collateral!$A$1:$C$30,3,FALSE),"") -> 588046.95 | I105: 0.002667908717 | J105: 675970.71 | M105: 0.002871108144 | N105: 789773.33
A106: Wheel Loaders | B106: Wheel Loaders | E106: 0.0003603294918 | F106: =IFERROR(VLOOKUP($A$106,[7]Collateral!$A$1:$C$30,3,FALSE),"") -> 83951.39 | I106: 0.0003644909187 | J106: 92351.43 | M106: 0.0003660782502 | N106: 100699.39
B107: Total | E107: =SUM(E72:E106) -> 1 | F107: =SUM(F72:F106) -> 232985064.8 | G107: =F69-F107 -> 0 | I107: 1 | J107: 253371003.9 | K107: -3.278255463e-07 | M107: 1 | N107: 275076134.5 | O107: 0
A108: $ 0 - $25,000
A109: $ 25,001 to $50,000 | B109: Contract Balance Distribution
A110: $0 - $25,000 | B110: $ 0 - $25,000 | E110: =IFERROR(F110/F$121,0) -> 0.05835659046 | F110: =IFERROR(VLOOKUP($A$110,'[7] Balance Distribution'!$A$1:$C$13,3,FALSE),"") -> 13596214.01 | I110: 0.05339303614 | J110: 13528247.17 | M110: 0.04900330064 | N110: 13479638.52
A111: $25,001 - $50,000 | B111: $ 25,001 to $50,000 | E111: =IFERROR(F111/F$121,0) -> 0.1068095496 | F111: =IFERROR(VLOOKUP($A$111,'[7] Balance Distribution'!$A$1:$C$13,3,FALSE),"") -> 24885029.83 | I111: 0.1045479697 | J111: 26489424.04 | M111: 0.09921119724 | N111: 27290632.64
A112: $50,001 - $75,000 | B112: $ 50,001 to $75,000 | E112: 0.1122012079 | F112: =IFERROR(VLOOKUP($A$112,'[7] Balance Distribution'!$A$1:$C$13,3,FALSE),"") -> 26141205.7 | I112: 0.1109213887 | J112: 28104263.62 | M112: 0.1111248815 | N112: 30567802.85
A113: $75,001 - $100,000 | B113: $ 75,001 to $100,000 | E113: 0.08797436612 | F113: =IFERROR(VLOOKUP($A$113,'[7] Balance Distribution'!$A$1:$C$13,3,FALSE),"") -> 20496713.39 | I113: 0.0975419954 | J113: 24714313.3 | M113: 0.09672943604 | N113: 26607959.36
A114: $100,001 - $125,000 | B114: $100,001 to $125,000 | E114: 0.1035934079 | F114: =IFERROR(VLOOKUP($A$114,'[7] Balance Distribution'!$A$1:$C$13,3,FALSE),"") -> 24135716.86 | I114: 0.09564621655 | J114: 24233977.91 | M114: 0.09681211591 | N114: 26630702.62
A115: $125,001 - $150,000 | B115: $125,001 to $150,000 | E115: 0.0898297232 | F115: =IFERROR(VLOOKUP($A$115,'[7] Balance Distribution'!$A$1:$C$13,3,FALSE),"") -> 20928983.88 | I115: 0.08752880356 | J115: 22177260.83 | M115: 0.08953609415 | N115: 24629242.68
A116: $150,001 - $200,000 | B116: $150,000 to $200,000 | E116: 0.1213408347 | F116: =IFERROR(VLOOKUP($A$116,'[7] Balance Distribution'!$A$1:$C$13,3,FALSE),"") -> 28270602.24 | I116: 0.1238644571 | J116: 31383661.85 | M116: 0.1219520603 | N116: 33546101.35
A117: $200,001 - $300,000 | B117: $200,001 to $300,000 | E117: 0.2001656347 | F117: =IFERROR(VLOOKUP($A$117,'[7] Balance Distribution'!$A$1:$C$13,3,FALSE),"") -> 46635603.36 | I117: 0.2014215473 | J117: 51034379.65 | M117: 0.2057159522 | N117: 56587548.95
A118: $300,001 - $400,000 | B118: $300,001 to $400,000 | E118: 0.0748844238 | F118: =IFERROR(VLOOKUP($A$118,'[7] Balance Distribution'!$A$1:$C$13,3,FALSE),"") -> 17446952.33 | I118: 0.06920960902 | J118: 17535708.12 | M118: 0.06693786214 | N118: 18413008.37
A119: $400,001 - $500,000 | B119: $400,001 to $500,000 | E119: 0.01659202376 | F119: =IFERROR(VLOOKUP($A$119,'[7] Balance Distribution'!$A$1:$C$13,3,FALSE),"") -> 3865693.73 | I119: 0.0242208884 | J119: 6136870.81 | M119: 0.03052896753 | N119: 8397790.38
A120: $500,001+ | B120: $500,000+ | E120: 0.02825223782 | F120: =IFERROR(VLOOKUP($A$120,'[7] Balance Distribution'!$A$1:$C$13,3,FALSE),"") -> 6582349.46 | I120: 0.0317040881 | J120: 8032896.63 | M120: 0.03244813232 | N120: 8925706.81
A121: $200,001 to $300,000 | B121: Total | E121: =SUM(E110:E120) -> 1 | F121: =SUM(F110:F120) -> 232985064.8 | G121: =F107-F121 -> 0 | I121: 1 | J121: 253371003.9 | K121: 0 | M121: 1 | N121: 275076134.5 | O121: 0
A122: 0
A123: 0 to 5 | B123: Residual / Balloon Payment Distribution
A124: 0 | B124: 0 | E124: =IFERROR(F124/F$134,0) -> 0.9206545733 | F124: =IFERROR(VLOOKUP($A$124,'[7]Residual '!$A$1:$C$11,3,FALSE),"") -> 214498765.4 | I124: 0.9134963724 | J124: 231453493 | M124: 0.9110859187 | N124: 250617992.7
A125: 0 to 5 | B125: 0 to 5 | E125: =IFERROR(F125/F$134,0) -> 0 | F125: =IFERROR(VLOOKUP($A$125,'[7]Residual '!$A$1:$C$11,3,FALSE),"") ->  | I125: 0 | M125: 0
A126: 6 to 10 | B126: 06 to 10 | E126: 0.0006711528919 | F126: =IFERROR(VLOOKUP($A$126,'[7]Residual '!$A$1:$C$11,3,FALSE),"") -> 156368.6 | I126: 0.0006548685817 | J126: 165924.71 | M126: 0.0006165197875 | N126: 169589.88
A127: 11 to 15 | B127: 11 to 15 | E127: 0.007936420438 | F127: =IFERROR(VLOOKUP($A$127,'[7]Residual '!$A$1:$C$11,3,FALSE),"") -> 1849067.43 | I127: 0.007420940403 | J127: 1880251.12 | M127: 0.007526171485 | N127: 2070270.16
A128: 16 to 20 | B128: 16 to 20 | E128: 0.02389854309 | F128: =IFERROR(VLOOKUP($A$128,'[7]Residual '!$A$1:$C$11,3,FALSE),"") -> 5568003.61 | I128: 0.02533978534 | J128: 6420366.85 | M128: 0.02457669245 | N128: 6760461.56
A129: 21 to 25 | B129: 21 to 25 | E129: 0.01592664068 | F129: =IFERROR(VLOOKUP($A$129,'[7]Residual '!$A$1:$C$11,3,FALSE),"") -> 3710669.41 | I129: 0.01801105904 | J129: 4563480.11 | M129: 0.01752467828 | N129: 4820620.76
A130: 26 to 30 | B130: 26 to 30 | E130: 0.01263335662 | F130: =IFERROR(VLOOKUP($A$130,'[7]Residual '!$A$1:$C$11,3,FALSE),"") -> 2943383.41 | I130: 0.01177006818 | J130: 2982193.99 | M130: 0.0127585968 | N130: 3509585.49
A131: 31 to 35 | B131: 31 to 35 | E131: 0.005957947567 | F131: =IFERROR(VLOOKUP($A$131,'[7]Residual '!$A$1:$C$11,3,FALSE),"") -> 1388112.8 | I131: 0.007429408973 | J131: 1882396.81 | M131: 0.007338744357 | N131: 2018713.43
A132: 36 to 40 | B132: 36 to 40 | E132: 0.009097403784 | F132: =IFERROR(VLOOKUP($A$132,'[7]Residual '!$A$1:$C$11,3,FALSE),"") -> 2119559.21 | I132: 0.01002773637 | J132: 2540737.63 | M132: 0.009303351068 | N132: 2559129.85
A133: 41+ % | B133: 41+% | E133: 0.003223961676 | F133: =IFERROR(VLOOKUP($A$133,'[7]Residual '!$A$1:$C$11,3,FALSE),"") -> 751134.92 | I133: 0.005849760734 | J133: 1482159.75 | M133: 0.009269327033 | N133: 2549770.65
E134: =SUM(E124:E133) -> 1 | F134: =SUM(F124:F133) -> 232985064.8 | G134: =F121-F134 -> 3.278255463e-07 | I134: 1 | J134: 253371003.9 | K134: 0 | M134: 1 | N134: 275076134.5 | O134: 7.152557373e-07
A135: 2004 Q1
A136: 2004 Q2 | B136: Quarter of Maturity Distribution
A137: =RIGHT(B137,2)&LEFT(B137,4) -> Q12016 | B137: 2016Q1 | E137: =F137/F$166 -> 0 | F137: =IFERROR(VLOOKUP($A$137,'[7]Quarter of Maturity Dist'!$A$1:$C$22,3,FALSE),0) -> 0 | I137: 0 | J137: 0 | M137: 0 | N137: 0
A138: Q22016 | B138: 2016Q2 | E138: 0 | F138: =IFERROR(VLOOKUP($A$138,'[7]Quarter of Maturity Dist'!$A$1:$C$22,3,FALSE),0) -> 0 | I138: 1.83443643e-05 | J138: 4647.93 | M138: 0.006176976796 | N138: 1699138.9
A139: =RIGHT(B139,2)&LEFT(B139,4) -> Q32016 | B139: 2016Q3 | E139: 0.0001197308077 | F139: =IFERROR(VLOOKUP($A$139,'[7]Quarter of Maturity Dist'!$A$1:$C$22,3,FALSE),0) -> 27895.49 | I139: 0.003944923273 | J139: 999529.17 | M139: 0.004850806204 | N139: 1334341.02
A140: =RIGHT(B140,2)&LEFT(B140,4) -> Q42016 | B140: 2016Q4 | E140: 0.002089095713 | F140: =IFERROR(VLOOKUP($A$140,'[7]Quarter of Maturity Dist'!$A$1:$C$22,3,FALSE),0) -> 486728.1 | I140: 0.00370160869 | J140: 937880.31 | M140: 0.004846832868 | N140: 1333248.05
A141: Q12017 | B141: 2017Q1 | E141: 0.0339749813 | F141: =IFERROR(VLOOKUP($A$141,'[7]Quarter of Maturity Dist'!$A$1:$C$22,3,FALSE),0) -> 7915663.22 | I141: 0.03537044552 | J141: 8961845.29 | M141: 0.03676917141 | N141: 10114321.54
A142: Q22017 | B142: 2017Q2 | E142: 0.01921748166 | F142: =IFERROR(VLOOKUP($A$142,'[7]Quarter of Maturity Dist'!$A$1:$C$22,3,FALSE),0) -> 4477386.21 | I142: 0.01981170123 | J142: 5019710.63 | M142: 0.02657185867 | N142: 7309284.17
A143: Q32017 | B143: 2017Q3 | E143: 0.01628190156 | F143: =IFERROR(VLOOKUP($A$143,'[7]Quarter of Maturity Dist'!$A$1:$C$22,3,FALSE),0) -> 3793439.89 | I143: 0.01999114078 | J143: 5065175.41 | M143: 0.02344709282 | N143: 6449735.66
A144: Q42017 | B144: 2017Q4 | E144: 0.02710986305 | F144: =IFERROR(VLOOKUP($A$144,'[7]Quarter of Maturity Dist'!$A$1:$C$22,3,FALSE),0) -> 6316193.2 | I144: 0.03231590957 | J144: 8187914.45 | M144: 0.03396266076 | N144: 9342317.44
A145: Q12018 | B145: 2018Q1 | E145: 0.09021740724 | F145: =IFERROR(VLOOKUP($A$145,'[7]Quarter of Maturity Dist'!$A$1:$C$22,3,FALSE),0) -> 21019308.47 | I145: 0.08832679811 | J145: 22379449.51 | M145: 0.08566295619 | N145: 23563834.86
A146: Q22018 | B146: 2018Q2 | E146: 0.05392825558 | F146: =IFERROR(VLOOKUP($A$146,'[7]Quarter of Maturity Dist'!$A$1:$C$22,3,FALSE),0) -> 12564478.12 | I146: 0.05740535896 | J146: 14544853.43 | M146: 0.06264049576 | N146: 17230905.44
A147: Q32018 | B147: 2018Q3 | E147: 0.04513615742 | F147: =IFERROR(VLOOKUP($A$147,'[7]Quarter of Maturity Dist'!$A$1:$C$22,3,FALSE),0) -> 10516050.56 | I147: 0.04938034837 | J147: 12511548.44 | M147: 0.05072482127 | N147: 13953187.76
A148: Q42018 | B148: 2018Q4 | E148: 0.05972192193 | F148: =IFERROR(VLOOKUP($A$148,'[7]Quarter of Maturity Dist'!$A$1:$C$22,3,FALSE),0) -> 13914315.85 | I148: 0.06041735622 | J148: 15308006.2 | M148: 0.05947342134 | N148: 16359718.85
A149: Q12019 | B149: 2019Q1 | E149: 0.1957302146 | F149: =IFERROR(VLOOKUP($A$149,'[7]Quarter of Maturity Dist'!$A$1:$C$22,3,FALSE),0) -> 45602216.73 | I149: 0.1851572591 | J149: 46913480.62 | M149: 0.1730369302 | N149: 47598329.9
A150: Q22019 | B150: 2019Q2 | E150: 0.08673625937 | F150: =IFERROR(VLOOKUP($A$150,'[7]Quarter of Maturity Dist'!$A$1:$C$22,3,FALSE),0) -> 20208253.01 | I150: 0.08422781636 | J150: 21340886.39 | M150: 0.08554092332 | N150: 23530266.53
A151: Q32019 | B151: 2019Q3 | E151: 0.04799269382 | F151: =IFERROR(VLOOKUP($A$151,'[7]Quarter of Maturity Dist'!$A$1:$C$22,3,FALSE),0) -> 11181580.88 | I151: 0.04898144416 | J151: 12410477.68 | M151: 0.04804366505 | N151: 13215665.67
A152: Q42019 | B152: 2019Q4 | E152: 0.03509980297 | F152: =IFERROR(VLOOKUP($A$152,'[7]Quarter of Maturity Dist'!$A$1:$C$22,3,FALSE),0) -> 8177729.87 | I152: 0.03724025213 | J152: 9435600.07 | M152: 0.03623710845 | N152: 9967963.72
A153: Q12020 | B153: 2020Q1 | E153: 0.1636583306 | F153: =IFERROR(VLOOKUP($A$153,'[7]Quarter of Maturity Dist'!$A$1:$C$22,3,FALSE),0) -> 38129946.75 | I153: 0.1539525981 | J153: 39007124.34 | M153: 0.1440382362 | N153: 39621481.24
A154: Q22020 | B154: 2020Q2 | E154: 0.07066751341 | F154: =IFERROR(VLOOKUP($A$154,'[7]Quarter of Maturity Dist'!$A$1:$C$22,3,FALSE),0) -> 16464475.19 | I154: 0.06894960437 | J154: 17469830.48 | M154: 0.06868983666 | N154: 18894934.75
A155: Q32020 | B155: 2020Q3 | E155: 0.03884010474 | F155: =IFERROR(VLOOKUP($A$155,'[7]Quarter of Maturity Dist'!$A$1:$C$22,3,FALSE),0) -> 9049164.32 | I155: 0.03762578457 | J155: 9533282.81 | M155: 0.03693063369 | N155: 10158735.96
A156: Q42020 | B156: 2020Q4 | E156: 0.01146214811 | F156: =IFERROR(VLOOKUP($A$156,'[7]Quarter of Maturity Dist'!$A$1:$C$22,3,FALSE),0) -> 2670509.32 | I156: 0.01132738599 | J156: 2870031.16 | M156: 0.0106479374 | N156: 2928993.46
A157: Q12021 | B157: 2021Q1 | E157: 0.002016136143 | F157: =IFERROR(VLOOKUP($A$157,'[7]Quarter of Maturity Dist'!$A$1:$C$22,3,FALSE),0) -> 469729.61 | I157: 0.001853920152 | J157: 469729.61 | M157: 0.001707634909 | N157: 469729.61
A158: Q22021 | B158: 2021Q2 | E158: 0 | F158: =IFERROR(VLOOKUP($A$158,'[7]Quarter of Maturity Dist'!$A$1:$C$22,3,FALSE),0) -> 0 | I158: 0 | J158: 0 | M158: 0 | N158: 0
A159: Q32021 | B159: 2021Q3 | E159: 0 | F159: =IFERROR(VLOOKUP($A$159,'[7]Quarter of Maturity Dist'!$A$1:$C$22,3,FALSE),0) -> 0 | I159: 0 | J159: 0 | M159: 0 | N159: 0
A160: Q42021 | B160: 2021Q4 | E160: 0 | F160: =IFERROR(VLOOKUP($A$160,'[7]Quarter of Maturity Dist'!$A$1:$C$22,3,FALSE),0) -> 0 | I160: 0 | J160: 0 | M160: 0 | N160: 0
A161: Q12022 | B161: 2022Q1 | E161: 0 | F161: =IFERROR(VLOOKUP($A$161,'[7]Quarter of Maturity Dist'!$A$1:$C$22,3,FALSE),0) -> 0 | I161: 0 | J161: 0 | M161: 0 | N161: 0
A162: Q22022 | B162: 2022Q2 | E162: 0 | F162: =IFERROR(VLOOKUP($A$162,'[7]Quarter of Maturity Dist'!$A$1:$C$22,3,FALSE),0) -> 0 | I162: 0 | J162: 0 | M162: 0 | N162: 0
A163: Q32022 | B163: 2022Q3 | E163: 0 | F163: =IFERROR(VLOOKUP($A$163,'[7]Quarter of Maturity Dist'!$A$1:$C$22,3,FALSE),0) -> 0 | I163: 0 | J163: 0 | M163: 0 | N163: 0
A164: Q42022 | B164: 2022Q4 | E164: 0 | F164: =IFERROR(VLOOKUP($A$164,'[7]Quarter of Maturity Dist'!$A$1:$C$22,3,FALSE),0) -> 0 | I164: 0 | J164: 0 | M164: 0 | N164: 0
E166: =SUM(E137:E164) -> 1 | F166: =SUM(F137:F165) -> 232985064.8 | G166: =F134-F166 -> -3.278255463e-07 | I166: 1 | J166: 253371003.9 | K166: -2.682209015e-07 | M166: 1 | N166: 275076134.5 | O166: -5.960464478e-07
A167: 0 to 6 months
A168: 07 to 12 months | B168: Seasoning Distribution
A169: 0 to 6 months | B169: 0 to 6 months | E169: =F169/F$180 -> 0 | F169: =IFERROR(VLOOKUP($A$169,'[7]Seasoning Distribution'!$A$1:$C$12,3,FALSE),0) -> 0 | I169: 0 | J169: 0 | M169: 0.0004042561896 | N169: 111201.23
A170: 07 to 12 months | B170: 07 to 12 months | E170: 0.0004400540871 | F170: =IFERROR(VLOOKUP($A$170,'[7]Seasoning Distribution'!$A$1:$C$12,3,FALSE),0) -> 102526.03 | I170: 0.2080950005 | J170: 52725239.2 | M170: 0.3380213664 | N170: 92981610.86
A171: 13 to 18 months | B171: 13 to 18 months | E171: 0.3498487217 | F171: =IFERROR(VLOOKUP($A$171,'[7]Seasoning Distribution'!$A$1:$C$12,3,FALSE),0) -> 81509527.1 | I171: 0.3038324637 | J171: 76982336.35 | M171: 0.2629515795 | N171: 72331704.07
A172: 19 to 24 months | B172: 19 to 24 months | E172: 0.2783901562 | F172: =IFERROR(VLOOKUP($A$172,'[7]Seasoning Distribution'!$A$1:$C$12,3,FALSE),0) -> 64860748.58 | I172: 0.2238922745 | J172: 56727810.35 | M172: 0.1798201156 | N172: 49464222.3
A173: 25 to 30 months | B173: 25 to 30 months | E173: 0.1724294168 | F173: =IFERROR(VLOOKUP($A$173,'[7]Seasoning Distribution'!$A$1:$C$12,3,FALSE),0) -> 40173478.84 | I173: 0.1167630003 | J173: 29584358.62 | M173: 0.1087961731 | N173: 29927230.74
A174: 31 to 36 months | B174: 31 to 36 months | E174: 0.1075887809 | F174: =IFERROR(VLOOKUP($A$174,'[7]Seasoning Distribution'!$A$1:$C$12,3,FALSE),0) -> 25066579.1 | I174: 0.108914545 | J174: 27595787.61 | M174: 0.08366485486 | N174: 23014204.87
A175: 37 to 42 months | B175: 37 to 42 months | E175: 0.07179253874 | F175: =IFERROR(VLOOKUP($A$175,'[7]Seasoning Distribution'!$A$1:$C$12,3,FALSE),0) -> 16726589.29 | I175: 0.01990237861 | J175: 5042685.65 | M175: 0.008573008938 | N175: 2358230.16
A176: 43 to 48 months | B176: 43 to 48 months | E176: 0.007650290638 | F176: =IFERROR(VLOOKUP($A$176,'[7]Seasoning Distribution'!$A$1:$C$12,3,FALSE),0) -> 1782403.46 | I176: 0.01478826469 | J176: 3746917.47 | M176: 0.01100645192 | N176: 3027612.25
A177: 49 to 54 months | B177: 49 to 54 months | E177: 0.009423946389 | F177: =IFERROR(VLOOKUP($A$177,'[7]Seasoning Distribution'!$A$1:$C$12,3,FALSE),0) -> 2195638.76 | I177: 0.002192461732 | J177: 555506.23 | M177: 0.003088208148 | N177: 849492.36
A178: 55 to 60 months | B178: 55 to 60 months | E178: 0.002436094479 | F178: =IFERROR(VLOOKUP($A$178,'[7]Seasoning Distribution'!$A$1:$C$12,3,FALSE),0) -> 567573.63 | I178: 0.001601266576 | J178: 405714.52 | M178: 0.0036289038 | N178: 998224.83
A179: 60+ months | B179: 61 to 72 months | E179: 0 | F179: =IFERROR(VLOOKUP($A$179,'[7]Seasoning Distribution'!$A$1:$C$12,3,FALSE),0) -> 0 | I179: 1.83443643e-05 | J179: 4647.93 | M179: 4.508155541e-05 | N179: 12400.86
A180: 61 to 72 months | B180: Total | E180: =SUM(E169:E179) -> 1 | F180: =SUM(F169:F179) -> 232985064.8 | G180: =F166-F180 -> 0 | I180: 1 | J180: 253371003.9 | K180: 0 | M180: 1 | N180: 275076134.5 | O180: 0
B182: Remaining Term Distribution
A183: 0 - 12 months | B183: 0-12 Months | E183: =F183/F$189 -> 0.08554061823 | F183: =IFERROR(VLOOKUP($A$183,'[7]Remaining Term'!$A$1:$C$6,3,FALSE),0) -> 19929686.48 | I183: 0.06832092466 | J183: 17310541.27 | M183: 0.06370194644 | N183: 17522885.19
A184: 13 - 24 months | B184: 13-24 Months | E184: 0.2206139653 | F184: =IFERROR(VLOOKUP($A$184,'[7]Remaining Term'!$A$1:$C$6,3,FALSE),0) -> 51399759 | I184: 0.2051331973 | J184: 51974804.15 | M184: 0.1876596761 | N184: 51620698.3
A185: 25 - 36 months | B185: 25-36 Months | E185: 0.3861659004 | F185: =IFERROR(VLOOKUP($A$185,'[7]Remaining Term'!$A$1:$C$6,3,FALSE),0) -> 89970887.32 | I185: 0.3813217397 | J185: 96615872.01 | M185: 0.3734731739 | N185: 102733557
A186: 37 - 48 months | B186: 37-48 Months | E186: 0.3017209633 | F186: =IFERROR(VLOOKUP($A$186,'[7]Remaining Term'!$A$1:$C$6,3,FALSE),0) -> 70296478.18 | I186: 0.3063085613 | J186: 77609707.69 | M186: 0.2923420974 | N186: 80416334.11
A187: 49 - 60 months | B187: 49-60 Months | E187: 0.005958552799 | F187: =IFERROR(VLOOKUP($A$187,'[7]Remaining Term'!$A$1:$C$6,3,FALSE),0) -> 1388253.81 | I187: 0.03891557699 | J187: 9860078.81 | M187: 0.08282310622 | N187: 22782659.91
A188: 60+ Months | B188: 60+ Months | E188: 0 | F188: =IFERROR(VLOOKUP($A$188,'[7]Remaining Term'!$A$1:$C$6,3,FALSE),0) -> 0 | I188: 0 | J188: 0 | M188: 0 | N188: 0
E189: =SUM(E183:E188) -> 1 | F189: =SUM(F183:F188) -> 232985064.8 | G189: =F180-F189 -> 0 | I189: 1 | J189: 253371003.9 | K189: 0 | M189: 1 | N189: 275076134.5 | O189: 0
B191: Origination LVR Distribution
A192: 01. 10% to 20% | B192: 10% to 20% | E192: =F192/F$202 -> 0.0002852132177 | F192: =IFERROR(VLOOKUP($A$192,'[7]LVR Band'!$A$1:$C$11,3,FALSE),0) -> 66450.42 | I192: 0.0002622652907 | J192: 66450.42 | M192: 0.0002415710113 | N192: 66450.42
A193: 02. 21% to 30% | B193: 21% to 30% | E193: 0.01064469734 | F193: =IFERROR(VLOOKUP($A$193,'[7]LVR Band'!$A$1:$C$11,3,FALSE),0) -> 2480055.5 | I193: 0.01043505645 | J193: 2643940.73 | M193: 0.01025936225 | N193: 2822105.71
A194: 03. 31% to 40% | B194: 31% to 40% | E194: 0.04182029393 | F194: =IFERROR(VLOOKUP($A$194,'[7]LVR Band'!$A$1:$C$11,3,FALSE),0) -> 9743503.89 | I194: 0.04082464524 | J194: 10343781.35 | M194: 0.03944824188 | N194: 10851269.89
A195: 04. 41% to 50% | B195: 41% to 50% | E195: 0.1005003415 | F195: =IFERROR(VLOOKUP($A$195,'[7]LVR Band'!$A$1:$C$11,3,FALSE),0) -> 23415078.57 | I195: 0.09836458511 | J195: 24922733.68 | M195: 0.09521667845 | N195: 26191835.85
A196: 05. 51% to 60% | B196: 51% to 60% | E196: 0.1510774289 | F196: =IFERROR(VLOOKUP($A$196,'[7]LVR Band'!$A$1:$C$11,3,FALSE),0) -> 35198784.55 | I196: 0.1491638503 | J196: 37793794.49 | M196: 0.146525665 | N196: 40305713.54
A197: 06. 61% to 70% | B197: 61% to 70% | E197: 0.2042874227 | F197: =IFERROR(VLOOKUP($A$197,'[7]LVR Band'!$A$1:$C$11,3,FALSE),0) -> 47595918.42 | I197: 0.2032202108 | J197: 51490108.84 | M197: 0.2023916858 | N197: 55673122.6
A198: 07. 71% to 80% | B198: 71% to 80% | E198: 0.2129476663 | F198: =IFERROR(VLOOKUP($A$198,'[7]LVR Band'!$A$1:$C$11,3,FALSE),0) -> 49613625.83 | I198: 0.2104363562 | J198: 53318470.84 | M198: 0.2099333936 | N198: 57747666.42
A199: 08. 81% to 90% | B199: 81% to 90% | E199: 0.1802915922 | F199: =IFERROR(VLOOKUP($A$199,'[7]LVR Band'!$A$1:$C$11,3,FALSE),0) -> 42005248.29 | I199: 0.1813396534 | J199: 45946210.03 | M199: 0.1855272105 | N199: 51034107.91
A200: 09. 91% to 100% | B200: 91% to 100% | E200: 0.09814534395 | F200: =IFERROR(VLOOKUP($A$200,'[7]LVR Band'!$A$1:$C$11,3,FALSE),0) -> 22866399.32 | I200: 0.1059533772 | J200: 26845513.55 | M200: 0.1104561915 | N200: 30383862.19
A201: > 100% | B201: > 100% | E201: 0 | F201: =IFERROR(VLOOKUP($A$201,'[7]LVR Band'!$A$1:$C$11,3,FALSE),0) -> 0 | I201: 0 | J201: 0 | M201: 0 | N201: 0
E202: =SUM(E192:E201) -> 1 | F202: =SUM(F192:F201) -> 232985064.8 | G202: =F189-F202 -> 0 | I202: 1 | J202: 253371003.9 | K202: 0 | M202: 1 | N202: 275076134.5 | O202: 0
B204: New v Used
A205: New | B205: New | E205: =F205/F$208 -> 0.9162099355 | F205: =IFERROR(VLOOKUP($A$205,'[7]New v Used'!$A$1:$C$4,3,FALSE),0) -> 213463231.2 | I205: 0.9157072006 | J205: 232013652.7 | M205: 0.9151503341 | N205: 251736016.4
A206: USed | B206: Used | E206: =F206/F$208 -> 0.08379006452 | F206: =IFERROR(VLOOKUP($A$206,'[7]New v Used'!$A$1:$C$4,3,FALSE),0) -> 19521833.61 | I206: 0.08429279937 | J206: 21357351.2 | M206: 0.08484966593 | N206: 23340118.12
A207: Used
E208: =SUM(E205:E206) -> 1 | F208: =SUM(F205:F206) -> 232985064.8 | G208: =F202-F208 -> 0 | I208: 1 | J208: 253371003.9 | K208: 2.682209015e-07 | M208: 1 | N208: 275076134.5 | O208: 7.152557373e-07
B210: Contract Type
A211: Finance Lease | B211: Finance Lease | E211: =F211/F$214 -> 0.0107718473 | F211: =IFERROR(VLOOKUP($A$211,'[7]Loan Type'!$A$1:$C$4,3,FALSE),0) -> 2509679.54 | I211: 0.01401723707 | J211: 3551561.43 | M211: 0.01544419049 | N211: 4248328.22
A212: Goods Mortgage | B212: Goods Mortgage | E212: =F212/F$214 -> 0.9892281527 | F212: =IFERROR(VLOOKUP($A$212,'[7]Loan Type'!$A$1:$C$4,3,FALSE),0) -> 230475385.2 | I212: 0.9859827629 | J212: 249819442.5 | M212: 0.9845558095 | N212: 270827806.3
A213: Hire Purchase | B213: Hire Purchase | E213: =F213/F$214 -> 0 | F213: =IFERROR(VLOOKUP($A$213,'[7]Loan Type'!$A$1:$C$4,3,FALSE),0) -> 0 | I213: 0 | J213: 0 | M213: 0 | N213: 0
E214: =SUM(E211:E213) -> 1 | F214: =SUM(F211:F213) -> 232985064.8 | G214: =F208-F214 -> 0 | I214: 1 | J214: 253371003.9 | K214: 2.384185791e-07 | M214: 1 | N214: 275076134.5 | O214: 0
... 30 more rows

Sheet Note Balance
C1: TOTAL NOTE BALANCES
D2: Total Notes | E2: Class A1 Notes | F2: Class A2 Notes | G2: Class B Notes | H2: Class C Notes | I2: Class D Notes
C3: Initial Invested Amount | D3: 350000000 | E3: 105000000 | F3: 198000000 | G3: 11300000 | H3: 10500000 | I3: 6200000
A4: (a) | C4: Invested Amount as at Previous Payment Date: 3 March 2016 | D4: 350000000 | E4: 105000000 | F4: 198000000 | G4: 11300000 | H4: 10500000 | I4: 6200000
A5: (b) | C5: Stated Amount as at Previous Payment Date: 3 March 2016 | D5: 350000000 | E5: 105000000 | F5: 198000000 | G5: 11300000 | H5: 10500000 | I5: 6200000
A6: (d) | C6: Principal Payments to Noteholders on Payment Date | D6: 350000000 | E6: 74839799.26 | F6: 0 | G6: 0 | H6: 0 | I6: 0
C7: Gross Aggregate Charge-Offs | D7: 0 | E7: 0 | F7: 0 | G7: 0 | H7: 0 | I7: 0
C8: Gross Aggregate Reinstatements of charge-offs | D8: 0 | E8: 0 | F8: 0 | G8: 0 | H8: 0 | I8: 0
A9: (e) | C9: Aggregate Charge-Offs for this Collection Period | D9: 84066.21 | E9: 0 | F9: 0 | G9: 0 | H9: 0 | I9: 0
A10: (f) | C10: Reinstatements relating to Charge-offs that have occurred this Collection Period | D10: 0 | E10: 0 | F10: 0 | G10: 0 | H10: 0 | I10: 0
C11: Aggregate Carry Over Charge-offs not previously reinstated | D11: 0 | E11: 0 | F11: 0 | G11: 0 | H11: 0 | I11: 0
C12: Reinstatements of Carry Over Charge-offs not previously reinstated | D12: 0 | E12: 0 | F12: 0 | G12: 0 | H12: 0 | I12: 0
C13: Aggregate Charge-Offs not reinstated and to be carried over to next period | D13: 84066.21 | E13: 0 | F13: 0 | G13: 0 | H13: 0 | I13: 0
C14: Invested Amount as at Payment Date: 16 May 2016 | D14: 275160200.7 | E14: 30160200.74 | F14: 198000000 | G14: 11300000 | H14: 10500000 | I14: 6200000
C15: Stated Amount as at Payment Date: 16 May 2016 | D15: 275076134.5 | E15: 30160200.74 | F15: 198000000 | G15: 11300000 | H15: 10500000 | I15: 6200000
C16: Bond Factor at Payment Date: 16 May 2016 | E16: 0.287240007 | F16: 1 | G16: 1 | H16: 1 | I16: 1
C17: Coupon Margin | E17: 0.006 | F17: 0.013 | G17: 0.02 | H17: 0.025 | I17: 0.0245
C18: Coupon Rate (3 month BBSW + margin) | E18: 0.0291 | F18: 0.0361 | G18: 0.0431 | H18: 0.0481 | I18: 0.0476
C19: Days in Coupon Period | E19: 74 | F19: 74 | G19: 74 | H19: 74 | I19: 74
C20: Coupon Entitlement to be paid out on the current Payment Date: 16 May 2016 | E20: 619471.23 | F20: 1449143.01 | G20: 98740.33 | H20: 102393.7 | I20: 59832.55
C23: TOTAL NOTE BALANCES
D24: Total Notes | E24: Class A1 Notes | F24: Class A2 Notes | G24: Class B Notes | H24: Class C Notes | I24: Class D Notes
C25: Initial Invested Amount | D25: 350000000 | E25: 105000000 | F25: 198000000 | G25: 11300000 | H25: 10500000 | I25: 6200000
A26: (a) | C26: Invested Amount as at Previous Payment Date: 16 May 2016 | D26: 350000000 | E26: 30160200.74 | F26: 198000000 | G26: 11300000 | H26: 10500000 | I26: 6200000
A27: (b) | C27: Stated Amount as at Previous Payment Date: 16 May 2016 | D27: 275160200.7 | E27: 30160200.74 | F27: 198000000 | G27: 11300000 | H27: 10500000 | I27: 6200000
A28: (d) | C28: Principal Payments to Noteholders on Payment Date | D28: 275076134.5 | E28: 21349482.67 | F28: 0 | G28: 0 | H28: 0 | I28: 0
C29: Gross Aggregate Charge-Offs | D29: 0 | E29: 0 | F29: 0 | G29: 0 | H29: 0 | I29: 0
C30: Gross Aggregate Reinstatements of charge-offs | D30: 0 | E30: 0 | F30: 0 | G30: 0 | H30: 0 | I30: 0
A31: (e) | C31: Aggregate Charge-Offs for this Collection Period | D31: 355647.93 | E31: 0 | F31: 0 | G31: 0 | H31: 0 | I31: 0
A32: (f) | C32: Reinstatements relating to Charge-offs that have occurred this Collection Period | D32: 0 | E32: 0 | F32: 0 | G32: 0 | H32: 0 | I32: 0
C33: Aggregate Carry Over Charge-offs not previously reinstated | D33: 84066.21 | E33: 0 | F33: 0 | G33: 0 | H33: 0 | I33: 0
C34: Reinstatements of Carry Over Charge-offs not previously reinstated | D34: 0 | E34: 0 | F34: 0 | G34: 0 | H34: 0 | I34: 0
C35: Aggregate Charge-Offs not reinstated and to be carried over to next period | D35: 439714.14 | E35: 0 | F35: 0 | G35: 0 | H35: 0 | I35: 0
C36: Invested Amount as at Payment Date: 16 August 2016 | D36: 253810718.1 | E36: 8810718.07 | F36: 198000000 | G36: 11300000 | H36: 10500000 | I36: 6200000
C37: Stated Amount as at Payment Date: 16 August 2016 | D37: 253371003.9 | E37: 8810718.07 | F37: 198000000 | G37: 11300000 | H37: 10500000 | I37: 6200000
C38: Bond Factor at Payment Date: 16 August 2016 | E38: 0.08391160067 | F38: 1 | G38: 1 | H38: 1 | I38: 1
C39: Coupon Margin | E39: 0.006 | F39: 0.013 | G39: 0.02 | H39: 0.025 | I39: 0.0245
C40: Coupon Rate (3 month BBSW + margin) | E40: 0.02585 | F40: 0.03285 | G40: 0.03985 | H40: 0.04485 | I40: 0.04435
C41: Days in Coupon Period | E41: 92 | F41: 92 | G41: 92 | H41: 92 | I41: 92
C42: Coupon Entitlement to be paid out on the current Payment Date: 16 August 2016 | E42: 196512.3 | F42: 1639440 | G42: 113501.53 | H42: 118698.9 | I42: 69307.51
C45: TOTAL NOTE BALANCES
D46: Total Notes | E46: Class A1 Notes | F46: Class A2 Notes | G46: Class B Notes | H46: Class C Notes | I46: Class D Notes
C47: Initial Invested Amount | D47: 350000000 | E47: 105000000 | F47: 198000000 | G47: 11300000 | H47: 10500000 | I47: 6200000
A48: (a) | C48: Invested Amount as at Previous Payment Date: 16 August 2016 | D48: 350000000 | E48: 8810718.07 | F48: 198000000 | G48: 11300000 | H48: 10500000 | I48: 6200000
A49: (b) | C49: Stated Amount as at Previous Payment Date: 16 August 2016 | D49: 253810718.1 | E49: 8810718.07 | F49: 198000000 | G49: 11300000 | H49: 10500000 | I49: 6200000
A50: (d) | C50: Principal Payments to Noteholders on Payment Date | D50: 253371003.9 | E50: 8810718.07 | F50: 11575221.07 | G50: 0 | H50: 0 | I50: 0
C51: Gross Aggregate Charge-Offs | D51: 0 | E51: 0 | F51: 0 | G51: 0 | H51: 0 | I51: 0
C52: Gross Aggregate Reinstatements of charge-offs | D52: 0 | E52: 0 | F52: 0 | G52: 0 | H52: 0 | I52: 0
A53: (e) | C53: Aggregate Charge-Offs for this Collection Period | D53: 0 | E53: 0 | F53: 0 | G53: 0 | H53: 0 | I53: 0
A54: (f) | C54: Reinstatements relating to Charge-offs that have occurred this Collection Period | D54: 0 | E54: 0 | F54: 0 | G54: 0 | H54: 0 | I54: 0
C55: Aggregate Carry Over Charge-offs not previously reinstated | D55: 439714.14 | E55: 0 | F55: 0 | G55: 0 | H55: 0 | I55: 0
C56: Reinstatements of Carry Over Charge-offs not previously reinstated | D56: 0 | E56: 0 | F56: 0 | G56: 0 | H56: 0 | I56: 0
C57: Aggregate Charge-Offs not reinstated and to be carried over to next period | D57: 439714.14 | E57: 0 | F57: 0 | G57: 0 | H57: 0 | I57: 0
C58: Invested Amount as at Payment Date: 16 November 2016 | D58: 233424778.9 | E58: 0 | F58: 186424778.9 | G58: 11300000 | H58: 10500000 | I58: 6200000
C59: Stated Amount as at Payment Date: 16 November 2016 | D59: 232985064.8 | E59: -7.450580597e-09 | F59: 186424778.9 | G59: 11300000 | H59: 10500000 | I59: 6200000
C60: Bond Factor at Payment Date: 16 November 2016 | E60: -7.095791045e-17 | F60: 0.9415392875 | G60: 1 | H60: 1 | I60: 1
C61: Coupon Margin | E61: 0.006 | F61: 0.013 | G61: 0.02 | H61: 0.025 | I61: 0.0245
C62: Coupon Rate (3 month BBSW + margin) | E62: 0.02355 | F62: 0.03055 | G62: 0.03755 | H62: 0.04255 | I62: 0.04205
C63: Days in Coupon Period | E63: 92 | F63: 92 | G63: 92 | H63: 92 | I63: 92
C64: Coupon Entitlement to be paid out on the current Payment Date: 16 November 2016 | E64: 52299.46 | F64: 1524654.25 | G64: 106950.63 | H64: 112611.78 | I64: 65713.21

Sheet Cumulative Defaults
A1: Cumulative Defaults & Losses
A3: Month | B3: Gross Losses | C3: Recoveries | D3: Net Losses
A4: 2016-04-01 | B4: 0.0002401891714 | C4: 0 | D4: =B4-C4 -> 0.0002401891714
A5: 2016-07-01 | B5: 0.001256326114 | C5: -2.479311429e-05 | D5: 0.001281119229
A6: 2016-10-01 | B6: =B5+'Collateral Tables'!E9/350000000 -> 0.001256326114 | C6: =C5+'Collateral Tables'!E23/350000000 -> 0.0002342489429 | D6: 0.001022077171
A7: 2017-01-01
A8: 2017-04-01
A9: 2017-07-01
A10: 2017-10-01
A11: 2018-01-01
A12: 2018-04-01
A13: 2018-07-01
A14: 2018-10-01
